[Event "Rapid Tournament (RAP)"]
[Site "Biel, Switzerland"]
[Date "2026.07.12"]
[Round "2.24"]
[White "Gautier, Anand"]
[Black "Zecirovic, Giacomo"]
[Result "1-0"]
[TimeControl "15 + 5"]
[WhiteTitle "-"]
[BlackTitle "-"]
[WhiteFideId "26010186"]
[BlackFideId "1339451"]
[WhiteElo "2223"]
[BlackElo "1886"]

1. e4 {[%clk 00:15:07]} {[%emt 00:00:03]} c6 {[%clk 00:15:09]} {[%emt
00:00:04]} 2. d4 {[%clk 00:15:09]} d5 {[%clk 00:15:12]} {[%emt 00:00:01]} 3.
Nc3 {[%clk 00:15:08]} {[%emt 00:00:06]} dxe4 {[%clk 00:15:15]} {[%emt
00:00:02]} 4. Nxe4 {[%clk 00:15:12]} {[%emt 00:00:02]} Nf6 {[%clk 00:15:19]}
{[%emt 00:00:01]} 5. Nxf6+ {[%clk 00:15:12]} {[%emt 00:00:05]} exf6 {[%clk
00:15:22]} {[%emt 00:00:02]} 6. c3 {[%clk 00:15:15]} {[%emt 00:00:01]} Bd6
{[%clk 00:15:25]} {[%emt 00:00:02]} 7. Bd3 {[%clk 00:15:18]} {[%emt 00:00:01]}
O-O {[%clk 00:15:22]} {[%emt 00:00:09]} 8. Ne2 {[%clk 00:15:18]} {[%emt
00:00:06]} Re8 {[%clk 00:15:19]} {[%emt 00:00:08]} 9. Qc2 {[%clk 00:15:20]}
{[%emt 00:00:03]} h6 {[%clk 00:15:20]} {[%emt 00:00:03]} 10. O-O {[%clk
00:15:15]} {[%emt 00:00:10]} c5 {[%clk 00:14:49]} {[%emt 00:00:36]} 11. Be3
{[%clk 00:14:59]} {[%emt 00:00:21]} Qc7 {[%clk 00:14:06]} {[%emt 00:00:49]} 12.
dxc5 {[%clk 00:14:38]} {[%emt 00:00:26]} Bxc5 {[%clk 00:13:22]} {[%emt
00:00:49]} 13. Bxc5 {[%clk 00:14:05]} {[%emt 00:00:38]} Qxc5 {[%clk 00:13:26]}
{[%emt 00:00:01]} 14. Nd4 {[%clk 00:13:35]} {[%emt 00:00:34]} Bd7 {[%clk
00:12:37]} {[%emt 00:00:54]} 15. Bf5 {[%clk 00:09:21]} {[%emt 00:04:19]} Bxf5
{[%clk 00:12:09]} {[%emt 00:00:34]} 16. Qxf5 {[%clk 00:09:21]} {[%emt
00:00:04]} Re5 {[%clk 00:12:06]} {[%emt 00:00:08]} 17. Qf3 {[%clk 00:08:47]}
{[%emt 00:00:39]} Qc7 {[%clk 00:08:42]} {[%emt 00:03:29]} 18. Qg3 {[%clk
00:08:09]} {[%emt 00:00:44]} Qb6 {[%clk 00:08:38]} {[%emt 00:00:09]} 19. Rae1
{[%clk 00:04:54]} {[%emt 00:03:20]} Nd7 {[%clk 00:07:58]} {[%emt 00:00:45]} 20.
b3 {[%clk 00:04:05]} {[%emt 00:00:54]} Rae8 {[%clk 00:07:55]} {[%emt 00:00:08]}
21. Nf3 {[%clk 00:03:45]} {[%emt 00:00:25]} Rxe1 {[%clk 00:07:33]} {[%emt
00:00:27]} 22. Rxe1 {[%clk 00:03:48]} {[%emt 00:00:02]} Rxe1+ {[%clk 00:07:29]}
{[%emt 00:00:08]} 23. Nxe1 {[%clk 00:03:51]} {[%emt 00:00:02]} Ne5 {[%clk
00:07:24]} {[%emt 00:00:10]} 24. h3 {[%clk 00:02:51]} {[%emt 00:01:06]} Qa6
{[%clk 00:07:13]} {[%emt 00:00:16]} 25. f4 {[%clk 00:02:26]} {[%emt 00:00:29]}
Ng6 {[%clk 00:07:01]} {[%emt 00:00:17]} 26. Qf2 {[%clk 00:02:24]} {[%emt
00:00:06]} Qd6 {[%clk 00:06:59]} {[%emt 00:00:07]} 27. g3 {[%clk 00:02:22]}
{[%emt 00:00:08]} a5 {[%clk 00:06:51]} {[%emt 00:00:13]} 28. Kh2 {[%clk
00:02:17]} {[%emt 00:00:10]} h5 {[%clk 00:06:44]} {[%emt 00:00:13]} 29. h4
{[%clk 00:02:20]} {[%emt 00:00:02]} Ne7 {[%clk 00:06:20]} {[%emt 00:00:29]} 30.
Ng2 {[%clk 00:02:12]} {[%emt 00:00:12]} Nd5 {[%emt 00:00:23]} 31. Qd2 {[%clk
00:02:08]} Qc5 {[%clk 00:06:02]} {[%emt 00:00:15]} 32. c4 {[%clk 00:02:07]}
{[%emt 00:00:05]} Nb4 {[%clk 00:06:01]} {[%emt 00:00:07]} 33. Ne1 {[%clk
00:01:35]} {[%emt 00:00:36]} a4 {[%clk 00:05:51]} {[%emt 00:00:15]} 34. Nf3
{[%clk 00:00:20]} {[%emt 00:01:18]} Nc6 {[%clk 00:05:25]} {[%emt 00:00:33]} 35.
Qe2 {[%clk 00:00:19]} {[%emt 00:00:07]} axb3 {[%clk 00:05:13]} {[%emt
00:00:17]} 36. axb3 {[%clk 00:00:23]} Qb4 {[%clk 00:05:06]} {[%emt 00:00:11]}
37. Qe8+ {[%clk 00:00:25]} {[%emt 00:00:03]} Qf8 {[%clk 00:05:10]} {[%emt
00:00:02]} 38. Qxf8+ {[%clk 00:00:25]} {[%emt 00:00:04]} Kxf8 {[%clk 00:05:14]}
{[%emt 00:00:02]} 39. Kg2 {[%clk 00:00:28]} {[%emt 00:00:02]} Na5 {[%clk
00:05:15]} {[%emt 00:00:04]} 40. Nd2 {[%clk 00:00:29]} {[%emt 00:00:04]} Nc6
{[%clk 00:05:17]} {[%emt 00:00:03]} 41. Kf3 {[%clk 00:00:31]} {[%emt 00:00:03]}
f5 {[%clk 00:05:20]} {[%emt 00:00:02]} 42. Ke3 {[%clk 00:00:35]} Ke7 {[%clk
00:05:22]} {[%emt 00:00:03]} 43. Nf3 {[%clk 00:00:37]} {[%emt 00:00:02]} f6
{[%clk 00:05:24]} {[%emt 00:00:04]} 44. Nd4 {[%clk 00:00:40]} {[%emt 00:00:02]}
Nxd4 {[%clk 00:04:41]} {[%emt 00:00:48]} 45. Kxd4 {[%clk 00:00:44]} {[%emt
00:00:02]} Kd6 {[%clk 00:04:43]} {[%emt 00:00:03]} 46. c5+ {[%clk 00:00:40]}
{[%emt 00:00:09]} Kc6 {[%clk 00:04:44]} {[%emt 00:00:03]} 47. Kc4 {[%clk
00:00:44]} {[%emt 00:00:01]} Kd7 {[%clk 00:04:21]} {[%emt 00:00:28]} 48. Kd5
{[%clk 00:00:47]} {[%emt 00:00:02]} g5 {[%clk 00:04:12]} {[%emt 00:00:14]} 49.
b4 {[%clk 00:00:48]} {[%emt 00:00:04]} 1-0

[Event "Rapid Tournament (RAP)"]
[Site "Biel, Switzerland"]
[Date "2026.07.12"]
[Round "2.25"]
[White "Berger, Vincent"]
[Black "Manko, Mariia"]
[Result "0-1"]
[TimeControl "15 + 5"]
[WhiteTitle "-"]
[BlackTitle "-"]
[WhiteFideId "1317822"]
[BlackFideId "14199220"]
[WhiteElo "1877"]
[BlackElo "2210"]

1. f4 {[%clk 00:15:08]} {[%emt 00:00:01]} d5 {[%clk 00:15:03]} {[%emt
00:00:08]} 2. Nf3 {[%clk 00:15:11]} {[%emt 00:00:05]} c5 {[%clk 00:15:05]} 3.
e3 {[%clk 00:15:10]} {[%emt 00:00:06]} Nc6 {[%clk 00:15:01]} {[%emt 00:00:09]}
4. b3 {[%clk 00:15:09]} {[%emt 00:00:06]} Nf6 {[%clk 00:14:49]} {[%emt
00:00:17]} 5. Bb5 {[%clk 00:15:07]} {[%emt 00:00:07]} Bd7 {[%clk 00:14:11]}
{[%emt 00:00:43]} 6. Bb2 {[%clk 00:15:07]} {[%emt 00:00:04]} e6 {[%clk
00:13:55]} {[%emt 00:00:20]} 7. O-O {[%clk 00:14:57]} {[%emt 00:00:15]} a6
{[%clk 00:13:43]} {[%emt 00:00:18]} 8. Bxc6 {[%clk 00:14:59]} {[%emt 00:00:03]}
Bxc6 {[%clk 00:13:47]} {[%emt 00:00:01]} 9. Ne5 {[%clk 00:14:38]} {[%emt
00:00:26]} Rc8 {[%clk 00:13:30]} {[%emt 00:00:22]} 10. d3 {[%clk 00:14:35]}
{[%emt 00:00:07]} Bd6 {[%clk 00:12:48]} {[%emt 00:00:47]} 11. Nd2 {[%clk
00:14:26]} {[%emt 00:00:14]} O-O {[%clk 00:12:39]} {[%emt 00:00:15]} 12. Ndf3
{[%clk 00:14:04]} {[%emt 00:00:27]} Nd7 {[%clk 00:12:21]} {[%emt 00:00:25]} 13.
Qe2 {[%clk 00:12:45]} {[%emt 00:01:21]} f6 {[%clk 00:12:10]} {[%emt 00:00:16]}
14. Nxc6 {[%clk 00:11:56]} {[%emt 00:00:54]} Rxc6 {[%clk 00:11:35]} {[%emt
00:00:41]} 15. g3 {[%clk 00:10:09]} {[%emt 00:01:51]} e5 {[%clk 00:09:51]}
{[%emt 00:01:50]} 16. fxe5 {[%clk 00:08:36]} {[%emt 00:01:38]} Bxe5 {[%clk
00:08:09]} {[%emt 00:01:47]} 17. Nxe5 {[%clk 00:07:44]} {[%emt 00:00:57]} fxe5
{[%clk 00:07:34]} {[%emt 00:00:40]} 18. e4 {[%clk 00:07:39]} {[%emt 00:00:10]}
d4 {[%clk 00:07:22]} {[%emt 00:00:17]} 19. Rxf8+ {[%clk 00:07:37]} {[%emt
00:00:07]} Qxf8 {[%clk 00:06:44]} {[%emt 00:00:43]} 20. Rf1 {[%clk 00:07:39]}
{[%emt 00:00:03]} Qe7 {[%clk 00:06:35]} {[%emt 00:00:14]} 21. Bc1 {[%clk
00:07:36]} {[%emt 00:00:08]} b5 {[%clk 00:05:24]} {[%emt 00:01:17]} 22. Qg4
{[%clk 00:06:52]} {[%emt 00:00:48]} c4 {[%clk 00:05:03]} {[%emt 00:00:26]} 23.
bxc4 {[%clk 00:06:42]} {[%emt 00:00:16]} bxc4 {[%clk 00:05:06]} 24. Bg5 {[%clk
00:06:35]} {[%emt 00:00:12]} Qe6 {[%clk 00:04:21]} {[%emt 00:00:50]} 25. Qf3
{[%clk 00:04:12]} {[%emt 00:02:28]} h6 {[%clk 00:04:02]} {[%emt 00:00:23]} 26.
Bc1 {[%clk 00:03:36]} {[%emt 00:00:42]} cxd3 {[%clk 00:04:02]} {[%emt
00:00:05]} 27. cxd3 {[%clk 00:03:34]} {[%emt 00:00:07]} Qxa2 {[%clk 00:03:54]}
{[%emt 00:00:13]} 28. Bxh6 {[%clk 00:01:02]} {[%emt 00:02:37]} Rxh6 {[%clk
00:03:19]} {[%emt 00:00:40]} 29. h4 {[%clk 00:00:59]} {[%emt 00:00:08]} Rf6
{[%clk 00:03:15]} {[%emt 00:00:09]} 30. Qg4 {[%clk 00:00:49]} {[%emt 00:00:15]}
Qe6 {[%clk 00:03:06]} {[%emt 00:00:13]} 31. Qe2 {[%clk 00:00:33]} {[%emt
00:00:22]} Qh3 {[%clk 00:02:45]} {[%emt 00:00:26]} 32. Qg2 {[%clk 00:00:33]}
{[%emt 00:00:05]} Qxg2+ {[%clk 00:02:46]} {[%emt 00:00:04]} 33. Kxg2 {[%clk
00:00:37]} {[%emt 00:00:01]} Rxf1 {[%clk 00:02:49]} {[%emt 00:00:02]} 0-1

[Event "Rapid Tournament (RAP)"]
[Site "Biel, Switzerland"]
[Date "2026.07.12"]
[Round "2.26"]
[White "Frey, Fabian"]
[Black "Hajduk, Tomasz"]
[Result "1-0"]
[TimeControl "15 + 5"]
[WhiteTitle "-"]
[BlackTitle "-"]
[WhiteFideId "1336487"]
[BlackFideId "21811415"]
[WhiteElo "2207"]
[BlackElo "1879"]

1. d4 {[%clk 00:15:06]} {[%emt 00:00:03]} d5 {[%clk 00:15:09]} {[%emt
00:00:03]} 2. c4 {[%clk 00:14:59]} {[%emt 00:00:10]} e6 {[%clk 00:15:13]}
{[%emt 00:00:02]} 3. Nc3 {[%clk 00:15:02]} {[%emt 00:00:02]} Nf6 {[%clk
00:15:17]} {[%emt 00:00:02]} 4. cxd5 {[%clk 00:15:02]} {[%emt 00:00:06]} exd5
{[%clk 00:15:08]} {[%emt 00:00:14]} 5. Bg5 {[%clk 00:15:05]} Be7 {[%clk
00:15:10]} {[%emt 00:00:03]} 6. e3 {[%clk 00:15:04]} {[%emt 00:00:06]} O-O
{[%clk 00:15:07]} {[%emt 00:00:08]} 7. Bd3 {[%clk 00:14:58]} {[%emt 00:00:10]}
h6 {[%clk 00:14:08]} {[%emt 00:01:05]} 8. Bf4 {[%clk 00:14:44]} {[%emt
00:00:18]} c6 {[%clk 00:14:11]} {[%emt 00:00:03]} 9. Nf3 {[%clk 00:14:39]}
{[%emt 00:00:10]} Bg4 {[%clk 00:14:04]} {[%emt 00:00:12]} 10. h3 {[%clk
00:14:35]} {[%emt 00:00:09]} Bh5 {[%clk 00:14:05]} {[%emt 00:00:04]} 11. Qc2
{[%clk 00:13:10]} {[%emt 00:01:30]} Ne4 {[%clk 00:09:45]} {[%emt 00:04:26]} 12.
Nxe4 {[%clk 00:12:48]} {[%emt 00:00:26]} dxe4 {[%clk 00:09:48]} {[%emt
00:00:02]} 13. Bxe4 {[%clk 00:12:51]} {[%emt 00:00:01]} Bb4+ {[%clk 00:09:47]}
{[%emt 00:00:07]} 14. Nd2 {[%clk 00:12:49]} {[%emt 00:00:06]} Qe7 {[%clk
00:09:25]} {[%emt 00:00:28]} 15. g4 {[%clk 00:12:06]} {[%emt 00:00:47]} Bg6
{[%clk 00:09:25]} {[%emt 00:00:06]} 16. Bxg6 {[%clk 00:12:07]} {[%emt
00:00:04]} fxg6 {[%clk 00:09:28]} {[%emt 00:00:03]} 17. O-O-O {[%clk 00:12:02]}
{[%emt 00:00:08]} g5 {[%clk 00:08:49]} {[%emt 00:00:45]} 18. Bg3 {[%clk
00:11:56]} {[%emt 00:00:11]} Nd7 {[%clk 00:08:42]} {[%emt 00:00:13]} 19. h4
{[%clk 00:10:31]} {[%emt 00:01:28]} c5 {[%clk 00:07:30]} {[%emt 00:01:18]} 20.
d5 {[%clk 00:10:22]} {[%emt 00:00:14]} c4 {[%clk 00:06:58]} {[%emt 00:00:37]}
21. Kb1 {[%clk 00:09:22]} {[%emt 00:01:04]} b5 {[%clk 00:06:32]} {[%emt
00:00:32]} 22. hxg5 {[%clk 00:08:26]} {[%emt 00:01:00]} Qxg5 {[%clk 00:06:29]}
{[%emt 00:00:08]} 23. Bf4 {[%clk 00:08:11]} {[%emt 00:00:21]} Rxf4 {[%clk
00:04:06]} {[%emt 00:02:28]} 24. exf4 {[%clk 00:08:14]} {[%emt 00:00:02]} Qxf4
{[%clk 00:04:10]} {[%emt 00:00:01]} 25. Ne4 {[%clk 00:08:18]} {[%emt 00:00:01]}
Ne5 {[%clk 00:03:58]} {[%emt 00:00:17]} 26. g5 {[%clk 00:07:08]} {[%emt
00:01:15]} Nd3 {[%clk 00:03:49]} {[%emt 00:00:14]} 27. Qe2 {[%clk 00:06:49]}
{[%emt 00:00:23]} hxg5 {[%clk 00:02:40]} {[%emt 00:01:15]} 28. Rdg1 {[%clk
00:06:19]} {[%emt 00:00:34]} Ne5 {[%clk 00:00:37]} {[%emt 00:02:09]} 29. Nxg5
{[%clk 00:05:04]} {[%emt 00:01:20]} Qf5+ {[%clk 00:00:31]} {[%emt 00:00:12]} 30.
Qe4 {[%clk 00:04:32]} {[%emt 00:00:34]} Qxe4+ {[%clk 00:00:16]} {[%emt
00:00:23]} 31. Nxe4 {[%clk 00:04:35]} Rd8 {[%clk 00:00:18]} {[%emt 00:00:03]}
32. Rg5 {[%clk 00:04:17]} {[%emt 00:00:21]} Rxd5 {[%clk 00:00:19]} {[%emt
00:00:06]} 33. Nf6+ {[%clk 00:04:15]} {[%emt 00:00:01]} 1-0

[Event "Rapid Tournament (RAP)"]
[Site "Biel, Switzerland"]
[Date "2026.07.12"]
[Round "2.27"]
[White "Materia, Matteo"]
[Black "Rohrer, Christophe"]
[Result "0-1"]
[TimeControl "15 + 5"]
[WhiteTitle "-"]
[BlackTitle "-"]
[WhiteFideId "45150575"]
[BlackFideId "1326546"]
[WhiteElo "1868"]
[BlackElo "2202"]

1. Nf3 {[%clk 00:15:09]} Nf6 {[%clk 00:15:08]} {[%emt 00:00:02]} 2. e3 {[%clk
00:15:10]} {[%emt 00:00:05]} d5 {[%clk 00:15:07]} {[%emt 00:00:07]} 3. b3
{[%clk 00:15:13]} e6 {[%clk 00:15:07]} {[%emt 00:00:06]} 4. Bb2 {[%clk
00:15:17]} Nbd7 {[%clk 00:14:41]} {[%emt 00:00:31]} 5. d4 {[%clk 00:15:09]}
{[%emt 00:00:13]} b6 {[%clk 00:14:39]} {[%emt 00:00:07]} 6. Bd3 {[%clk
00:15:10]} {[%emt 00:00:03]} Bb7 {[%clk 00:14:33]} {[%emt 00:00:12]} 7. O-O
{[%clk 00:15:12]} {[%emt 00:00:03]} Bd6 {[%clk 00:14:27]} {[%emt 00:00:11]} 8.
Nbd2 {[%clk 00:14:54]} {[%emt 00:00:23]} O-O {[%clk 00:13:53]} {[%emt
00:00:39]} 9. Ne5 {[%clk 00:14:48]} {[%emt 00:00:11]} c5 {[%clk 00:13:29]}
{[%emt 00:00:29]} 10. f4 {[%clk 00:14:47]} {[%emt 00:00:06]} Ne4 {[%clk
00:12:10]} {[%emt 00:01:23]} 11. Nxe4 {[%clk 00:12:50]} {[%emt 00:02:02]} dxe4
{[%clk 00:12:12]} {[%emt 00:00:04]} 12. Bb5 {[%clk 00:12:47]} {[%emt 00:00:09]}
Nf6 {[%clk 00:11:41]} {[%emt 00:00:36]} 13. Qe1 {[%clk 00:10:40]} {[%emt
00:02:12]} Rc8 {[%clk 00:11:03]} {[%emt 00:00:43]} 14. c3 {[%clk 00:09:20]}
{[%emt 00:01:24]} Qe7 {[%clk 00:10:29]} {[%emt 00:00:39]} 15. Rc1 {[%clk
00:08:45]} {[%emt 00:00:40]} a6 {[%clk 00:09:52]} {[%emt 00:00:42]} 16. Be2
{[%clk 00:08:48]} {[%emt 00:00:02]} b5 {[%clk 00:09:07]} {[%emt 00:00:50]} 17.
Qg3 {[%clk 00:07:11]} {[%emt 00:01:42]} cxd4 {[%clk 00:08:02]} {[%emt
00:01:10]} 18. cxd4 {[%clk 00:07:08]} {[%emt 00:00:08]} Nd5 {[%clk 00:07:48]}
{[%emt 00:00:19]} 19. Rfd1 {[%clk 00:06:14]} {[%emt 00:00:59]} f6 {[%emt
00:01:30]} 20. Ng4 {[%clk 00:06:16]} Kh8 {[%clk 00:06:28]} {[%emt 00:00:03]} 21.
Nf2 {[%clk 00:04:59]} {[%emt 00:01:22]} f5 {[%clk 00:06:24]} {[%emt 00:00:10]}
22. Nh3 {[%clk 00:04:42]} {[%emt 00:00:21]} Bb4 {[%clk 00:05:10]} {[%emt
00:01:18]} 23. Rc5 {[%clk 00:02:15]} {[%emt 00:02:33]} Bxc5 {[%clk 00:03:06]}
{[%emt 00:02:10]} 24. dxc5 {[%clk 00:02:18]} {[%emt 00:00:01]} Nf6 {[%clk
00:03:09]} {[%emt 00:00:01]} 25. Be5 {[%clk 00:01:32]} {[%emt 00:00:52]} Rfd8
{[%clk 00:03:01]} {[%emt 00:00:14]} 26. Bd6 {[%clk 00:01:23]} {[%emt 00:00:13]}
Qe8 {[%clk 00:02:53]} {[%emt 00:00:12]} 27. b4 {[%clk 00:01:17]} {[%emt
00:00:12]} Bd5 {[%clk 00:02:48]} {[%emt 00:00:10]} 28. a4 {[%clk 00:00:59]}
{[%emt 00:00:23]} Bb3 {[%clk 00:02:44]} {[%emt 00:00:09]} 29. Rb1 {[%clk
00:00:45]} {[%emt 00:00:19]} Bxa4 {[%clk 00:02:47]} {[%emt 00:00:02]} 30. Ng5
{[%clk 00:00:48]} {[%emt 00:00:02]} h6 {[%clk 00:02:16]} {[%emt 00:00:37]} 31.
Qh4 {[%clk 00:00:50]} {[%emt 00:00:02]} Kg8 {[%clk 00:02:20]} {[%emt 00:00:01]}
32. Ra1 {[%clk 00:00:38]} {[%emt 00:00:18]} Rc6 {[%clk 00:02:07]} {[%emt
00:00:18]} 33. Rxa4 {[%clk 00:00:21]} {[%emt 00:00:22]} bxa4 {[%clk 00:02:09]}
{[%emt 00:00:02]} 34. Bc4 {[%clk 00:00:25]} Rdxd6 {[%clk 00:02:07]} {[%emt
00:00:07]} 35. cxd6 {[%clk 00:00:24]} {[%emt 00:00:06]} Rxc4 {[%clk 00:02:04]}
{[%emt 00:00:08]} 0-1

[Event "Rapid Tournament (RAP)"]
[Site "Biel, Switzerland"]
[Date "2026.07.12"]
[Round "2.28"]
[White "Fernandes Barbosa Dos Santos, Gabriel"]
[Black "Aryan, Goyal"]
[Result "1/2-1/2"]
[TimeControl "15 + 5"]
[WhiteTitle "-"]
[BlackTitle "-"]
[WhiteFideId "1354388"]
[BlackFideId "366108825"]
[WhiteElo "2199"]
[BlackElo "1869"]

1. e4 {[%clk 00:15:07]} {[%emt 00:00:02]} e5 {[%clk 00:15:09]} {[%emt
00:00:02]} 2. Nf3 {[%clk 00:15:11]} {[%emt 00:00:04]} Nc6 {[%clk 00:15:13]} 3.
Bb5 {[%clk 00:15:14]} {[%emt 00:00:01]} a6 {[%clk 00:15:15]} {[%emt 00:00:02]}
4. Ba4 {[%clk 00:15:17]} {[%emt 00:00:03]} Nf6 {[%clk 00:15:18]} 5. O-O {[%clk
00:15:19]} {[%emt 00:00:04]} Nxe4 {[%clk 00:15:21]} {[%emt 00:00:02]} 6. Re1
{[%clk 00:14:57]} {[%emt 00:00:27]} Nc5 {[%clk 00:15:24]} {[%emt 00:00:01]} 7.
Bxc6 {[%clk 00:14:31]} {[%emt 00:00:32]} dxc6 {[%clk 00:15:26]} {[%emt
00:00:03]} 8. Nxe5 {[%clk 00:14:26]} {[%emt 00:00:11]} Be7 {[%clk 00:15:29]}
{[%emt 00:00:02]} 9. d4 {[%clk 00:14:20]} {[%emt 00:00:10]} Ne6 {[%clk
00:15:32]} 10. Be3 {[%clk 00:13:57]} {[%emt 00:00:28]} O-O {[%clk 00:15:31]}
{[%emt 00:00:07]} 11. c4 {[%clk 00:13:36]} {[%emt 00:00:26]} f6 {[%clk
00:15:00]} {[%emt 00:00:36]} 12. Nf3 {[%clk 00:13:24]} {[%emt 00:00:17]} Re8
{[%clk 00:14:50]} {[%emt 00:00:16]} 13. Nc3 {[%clk 00:13:25]} {[%emt 00:00:03]}
Nf8 {[%clk 00:14:48]} {[%emt 00:00:07]} 14. h3 {[%clk 00:13:17]} {[%emt
00:00:13]} Be6 {[%clk 00:14:34]} {[%emt 00:00:19]} 15. Qd3 {[%clk 00:13:09]}
{[%emt 00:00:13]} Qd7 {[%clk 00:14:28]} {[%emt 00:00:11]} 16. Rad1 {[%clk
00:13:02]} {[%emt 00:00:13]} Rad8 {[%clk 00:14:31]} {[%emt 00:00:02]} 17. Bf4
{[%clk 00:12:09]} {[%emt 00:00:57]} Ng6 {[%clk 00:14:17]} {[%emt 00:00:19]} 18.
Bg3 {[%clk 00:11:26]} {[%emt 00:00:48]} Bf5 {[%clk 00:13:05]} {[%emt 00:01:17]}
19. Qd2 {[%clk 00:11:01]} {[%emt 00:00:29]} Bd6 {[%clk 00:13:06]} {[%emt
00:00:05]} 20. Kh2 {[%clk 00:10:46]} {[%emt 00:00:20]} h5 {[%clk 00:12:30]}
{[%emt 00:00:42]} 21. c5 {[%clk 00:10:05]} {[%emt 00:00:45]} Bxg3+ {[%clk
00:12:25]} {[%emt 00:00:10]} 22. fxg3 {[%clk 00:10:08]} {[%emt 00:00:02]} Ne7
{[%clk 00:11:26]} {[%emt 00:01:04]} 23. Nh4 {[%clk 00:08:28]} {[%emt 00:01:45]}
Be6 {[%clk 00:08:52]} {[%emt 00:02:39]} 24. Qf2 {[%clk 00:07:46]} {[%emt
00:00:48]} Nd5 {[%clk 00:08:42]} {[%emt 00:00:15]} 25. Ne4 {[%clk 00:07:37]}
{[%emt 00:00:13]} Qf7 {[%clk 00:08:13]} {[%emt 00:00:34]} 26. Rd2 {[%clk
00:06:44]} {[%emt 00:00:58]} Re7 {[%clk 00:07:16]} {[%emt 00:01:02]} 27. Rde2
{[%clk 00:06:31]} {[%emt 00:00:18]} Rde8 {[%clk 00:07:18]} {[%emt 00:00:03]} 28.
Qf3 {[%clk 00:05:40]} {[%emt 00:00:56]} g5 {[%clk 00:04:08]} {[%emt 00:03:15]}
29. Nf5 {[%clk 00:05:23]} {[%emt 00:00:23]} Bxf5 {[%clk 00:04:12]} {[%emt
00:00:01]} 30. Qxf5 {[%clk 00:05:25]} {[%emt 00:00:02]} Kg7 {[%clk 00:04:14]}
{[%emt 00:00:03]} 31. Nc3 {[%clk 00:02:04]} {[%emt 00:03:26]} Qg6 {[%clk
00:02:12]} {[%emt 00:02:07]} 32. Rxe7+ {[%clk 00:02:07]} {[%emt 00:00:03]} Rxe7
{[%clk 00:00:35]} {[%emt 00:01:42]} 33. Rxe7+ {[%clk 00:02:10]} {[%emt
00:00:01]} Nxe7 {[%clk 00:00:39]} {[%emt 00:00:01]} 34. Qd7 {[%clk 00:02:12]}
{[%emt 00:00:03]} Qf7 {[%clk 00:00:41]} {[%emt 00:00:03]} 35. Qxc7 {[%clk
00:02:07]} {[%emt 00:00:10]} Qe6 {[%clk 00:00:32]} {[%emt 00:00:14]} 36. Qd6
{[%clk 00:01:58]} {[%emt 00:00:13]} Qe3 {[%clk 00:00:26]} {[%emt 00:00:12]} 37.
d5 {[%clk 00:01:16]} {[%emt 00:00:47]} Nf5 {[%clk 00:00:15]} {[%emt 00:00:16]}
38. Qc7+ {[%clk 00:01:21]} {[%emt 00:00:01]} Kg6 {[%clk 00:00:19]} 39. Qb8
{[%clk 00:00:49]} {[%emt 00:00:37]} h4 {[%clk 00:00:14]} {[%emt 00:00:10]} 40.
gxh4 {[%clk 00:00:35]} {[%emt 00:00:19]} gxh4 {[%clk 00:00:12]} {[%emt
00:00:07]} 41. Qg8+ {[%clk 00:00:35]} {[%emt 00:00:04]} Ng7 {[%clk 00:00:16]}
{[%emt 00:00:02]} 42. Qb8 {[%clk 00:00:34]} {[%emt 00:00:05]} Nf5 {[%clk
00:00:18]} {[%emt 00:00:03]} 43. a4 {[%clk 00:00:28]} {[%emt 00:00:12]} Ng3
{[%clk 00:00:09]} {[%emt 00:00:14]} 44. Qg8+ {[%clk 00:00:29]} {[%emt
00:00:04]} Kh6 {[%clk 00:00:11]} {[%emt 00:00:02]} 45. Qh8+ {[%clk 00:00:31]}
{[%emt 00:00:03]} Kg6 {[%clk 00:00:14]} {[%emt 00:00:03]} 46. Qg8+ {[%clk
00:00:14]} {[%emt 00:00:21]} Kh6 {[%clk 00:00:18]} {[%emt 00:00:01]} 47. Qh8+
{[%clk 00:00:13]} {[%emt 00:00:06]} Kg6 {[%clk 00:00:23]} {[%emt 00:00:01]} 48.
Qg8+ {[%clk 00:00:08]} {[%emt 00:00:09]} Kh6 {[%clk 00:00:27]} {[%emt
00:00:01]} 49. Qf8+ {[%clk 00:00:12]} {[%emt 00:00:01]} Kg6 {[%clk 00:00:31]}
50. Qg8+ {[%clk 00:00:12]} {[%emt 00:00:05]} Kh6 {[%clk 00:00:35]} 1/2-1/2